fUSD/lending_fUSD_20250911
["ID","MTS","AMOUNT","RATE_DAILY","PERIOD"]
[384882950,1757614248463,-400.0,0.00027397,7]
[384882951,1757614248473,-151.0,0.00027397,7]
[384882952,1757614248483,-161.992683,0.00027397,7]
[384882953,1757614248492,-400.0,0.00027397,7]
[384882954,1757614248501,-400.0,0.00027397,7]
[384882955,1757614248510,-403.69273012,0.00027397,7]
[384882956,1757614248520,-400.0,0.00027397,7]
[384882957,1757614248530,-400.0,0.00027397,7]
[384882958,1757614248540,-400.0,0.00027397,7]
[384882959,1757614248549,-400.0,0.00027397,7]
[384882960,1757614248561,-406.77824179,0.00027397,7]
[384882961,1757614248571,-403.58648251,0.00027397,7]
[384882962,1757614248580,-1746.16,0.00027397,7]
[384882963,1757614248594,-400.0,0.00027397,2]
[384882964,1757614248603,-419.2,0.00027397,7]
[384882965,1757614248613,-279.36444214,0.00027397,7]
[384882966,1757614248623,-400.0,0.00027397,7]
[384882967,1757614248632,-655.55,0.00027397,7]
[384882968,1757614248642,-400.0,0.00027397,7]
[384882969,1757614248651,-400.0,0.00027397,7]
[384882970,1757614248661,-391.7555964,0.00027397,7]
[384882971,1757614248671,-913.02,0.00027397,7]
[384882972,1757614248680,-400.0,0.00027397,7]
[384882973,1757614248690,-400.0,0.00027397,7]
[384882974,1757614248699,-407.02,0.00027397,7]
[384882975,1757614248709,-541.29,0.00027397,7]
[384882976,1757614248718,-400.0,0.00027397,7]
[384882977,1757614248728,-671.36,0.00027397,7]
[384882978,1757614248737,-400.0,0.00027397,7]
[384882979,1757614248747,-989.89,0.00027397,7]
[384882980,1757614248756,-558.79,0.00027397,7]
[384882981,1757614248766,-400.0,0.00027397,7]
[384882982,1757614248775,-400.0,0.00027397,7]
[384882983,1757614248785,-400.0,0.00027397,7]
[384882984,1757614248796,-875.74,0.00027397,7]
[384882985,1757614248805,-400.0,0.00027397,7]
[384882986,1757614248815,-400.0,0.00027397,7]
[384882987,1757614248824,-400.0,0.00027397,7]
[384882988,1757614248834,-400.0,0.00027397,7]
[384882989,1757614248844,-400.0,0.00027397,7]
[384882990,1757614248854,-400.0,0.00027397,7]
[384882991,1757614248867,-400.0,0.00027397,7]
[384882992,1757614248877,-400.0,0.00027397,7]
[384882993,1757614248887,-400.0,0.00027397,7]
[384882994,1757614248897,-400.0,0.00027397,7]
[384882995,1757614248907,-400.0,0.00027397,7]
[384882996,1757614248917,-400.0,0.00027397,7]
[384882997,1757614248927,-400.0,0.00027397,7]
[384882998,1757614248936,-400.0,0.00027397,7]
[384882999,1757614248946,-400.0,0.00027397,7]
[384883000,1757614248956,-1601.41,0.00027397,7]
[384883001,1757614248966,-1369.17,0.00027397,7]
[384883002,1757614248976,-400.0,0.00027397,7]
[384883003,1757614248986,-400.0,0.00027397,7]
[384883004,1757614248995,-400.0,0.00027397,7]
[384883005,1757614249005,-400.0,0.00027397,7]
[384883006,1757614249014,-400.0,0.00027397,7]
[384883007,1757614249024,-344.82739029,0.00027397,7]
[384883008,1757614249032,-431.77,0.00027397,7]
[384883009,1757614249043,-400.0,0.00027397,7]
[384883010,1757614249056,-400.0,0.00027397,7]
[384883011,1757614249066,-400.0,0.00027397,7]
[384883012,1757614249075,-400.0,0.00027397,7]
[384883013,1757614249085,-547.5,0.00027397,7]
[384883014,1757614249095,-400.0,0.00027397,2]
[384883015,1757614249105,-400.0,0.00027397,7]
[384883016,1757614249114,-806.75,0.00027397,7]
[384883017,1757614249123,-400.0,0.00027397,7]
[384883018,1757614249133,-400.0,0.00027397,7]
[384883019,1757614249144,-87.12834198,0.00027397,7]
[384883020,1757614249317,-312.87165802,0.00027397,7]
[384883021,1757614249326,-400.0,0.00027397,7]
[384883022,1757614249335,-400.0,0.00027397,7]
[384883023,1757614249345,-3004.17,0.00027397,7]
[384883024,1757614249354,-400.0,0.00027397,7]
[384883025,1757614249363,-400.0,0.00027397,7]
[384883026,1757614249373,-400.0,0.00027397,7]
[384883027,1757614249382,-2326.12,0.00027397,7]
[384883028,1757614249392,-671.33,0.00027397,7]
[384883029,1757614249401,-400.0,0.00027397,7]
[384883030,1757614249411,-422.22,0.00027397,7]
[384883031,1757614249420,-400.0,0.00027397,7]
[384883032,1757614249429,-400.0,0.00027397,7]
[384883033,1757614249438,-1413.61,0.00027397,7]
[384883034,1757614249447,-400.0,0.00027397,7]
[384883035,1757614249456,-997.82,0.00027397,7]
[384883036,1757614249465,-960.78010095,0.00027397,7]
[384883037,1757614249479,-862.08989905,0.00027397,7]
[384883038,1757614249488,-1417.52,0.00027397,7]
[384883039,1757614249498,-708.09,0.00027397,7]
[384883040,1757614249507,-400.0,0.00027397,7]
[384883041,1757614249517,-1737.28,0.00027397,7]
[384883042,1757614249526,-400.0,0.00027397,7]
[384883043,1757614249537,-682.44,0.00027397,7]
[384883044,1757614249546,-534.96,0.00027397,7]
[384883045,1757614249556,-400.0,0.00027397,7]
[384883046,1757614249564,-1042.40218293,0.00027397,7]
[384883047,1757614249675,-4.26781707,0.00027397,7]
[384883048,1757614249683,-400.0,0.00027397,7]
[384883049,1757614249693,-400.0,0.00027397,7]
[384883050,1757614249702,-1376.47,0.00027397,7]
[384883051,1757614249711,-1819.50561732,0.00027397,7]
[384883052,1757614249723,-146.34438268,0.00027397,7]
[384883053,1757614249731,-400.0,0.00027397,7]
[384883054,1757614249741,-2411.84,0.00027397,7]
[384883055,1757614249750,-647.74,0.00027397,7]
[384883056,1757614249759,-718.19,0.00027397,7]
[384883057,1757614249769,-400.0,0.00027397,7]
[384883058,1757614249778,-400.0,0.00027397,7]
[384883059,1757614249787,-400.0,0.00027397,7]
[384883060,1757614249796,-400.0,0.00027397,7]
[384883061,1757614249805,-2008.55,0.00027397,7]
[384883062,1757614249814,-1993.46,0.00027397,7]
[384883063,1757614249823,-638.84585688,0.00027397,7]
[384883064,1757614249836,-119.58414312,0.00027397,7]
[384883065,1757614249845,-375.80417593,0.00027397,7]
[384883066,1757614249853,-314.67587893,0.00027397,7]
[384883067,1757614249866,-193.55412107,0.00027397,7]
[384883068,1757614249875,-400.0,0.00027397,7]
[384883069,1757614249885,-16.44652515,0.00027397,7]
[384883070,1757614249908,-873.07347485,0.00027397,7]
[384883071,1757614250108,-400.0,0.00027397,7]
[384883072,1757614250144,-424.94118569,0.00027397,7]
[384883073,1757614250154,-400.0,0.00027397,7]
[384883074,1757614250164,-503.98,0.00027397,7]
[384883075,1757614250174,-400.0,0.00027397,7]
[384883076,1757614250183,-400.0,0.00027397,7]
[384883077,1757614250193,-400.0,0.00027397,7]
[384883078,1757614250203,-1798.32,0.00027397,7]
[384883079,1757614250213,-401.51215914,0.00027397,7]
[384883080,1757614250221,-400.0,0.00027397,7]
[384883081,1757614250231,-400.0,0.00027397,7]
[384883082,1757614250240,-1245.3,0.00027397,7]
[384883083,1757614250249,-581.74,0.00027397,7]
[384883084,1757614250258,-400.0,0.00027397,7]
[384883085,1757614250268,-400.0,0.00027397,7]
[384883086,1757614250277,-536.82,0.00027397,7]
[384883087,1757614250287,-400.0,0.00027397,7]
[384883088,1757614250296,-2395.43,0.00027397,7]
[384883089,1757614250305,-942.73,0.00027397,7]
[384883090,1757614250315,-500.0,0.00027397,7]
[384883091,1757614250324,-500.0,0.00027397,7]
[384883092,1757614250333,-500.0,0.00027397,7]
[384883093,1757614250343,-2146.36,0.00027397,7]
[384883094,1757614250352,-400.0,0.00027397,7]
[384883095,1757614250361,-400.0,0.00027397,7]
[384883096,1757614250371,-400.0,0.00027397,7]
[384883097,1757614250380,-400.0,0.00027397,7]
[384883098,1757614250389,-400.0,0.00027397,7]
[384883099,1757614250398,-400.0,0.00027397,7]
[384883100,1757614250407,-400.0,0.00027397,7]
[384883101,1757614250416,-150.0,0.00027397,7]
[384883102,1757614250426,-1409.78,0.00027397,7]
[384883103,1757614250436,-1000.0,0.00027397,7]
[384883104,1757614250445,-400.0,0.00027397,7]
[384883105,1757614250455,-150.0,0.00027397,7]
[384883106,1757614250464,-2602.27,0.00027397,7]
[384883107,1757614250473,-400.0,0.00027397,7]
[384883108,1757614250482,-1011.35,0.00027397,7]
[384883109,1757614250492,-795.47,0.00027397,7]
[384883110,1757614250501,-400.0,0.00027397,7]
[384883111,1757614250511,-400.0,0.00027397,7]
[384883112,1757614250520,-150.0,0.00027397,7]
[384883113,1757614250531,-1455.37,0.00027397,7]
[384883114,1757614250541,-2043.03,0.00027397,7]
[384883115,1757614250550,-2646.48,0.00027397,7]
[384883116,1757614250559,-906.04318052,0.00027397,7]
[384883117,1757614250593,-18.92681948,0.00027397,7]
[384883118,1757614250603,-400.0,0.00027397,7]
[384883119,1757614250612,-761.32,0.00027397,7]
[384883120,1757614250622,-400.0,0.00027397,7]
[384883121,1757614250631,-2435.86,0.00027397,7]
[384883122,1757614250640,-1747.94,0.00027397,7]
[384883123,1757614250651,-26.48373778,0.00027397,7]
[384883124,1757614250663,-123.51626222,0.00027397,7]
[384883125,1757614250673,-500.0,0.00027397,7]
[384883126,1757614250682,-400.0,0.00027397,7]
[384883127,1757614250692,-1567.67,0.00027397,7]
[384883128,1757614250701,-400.0,0.00027397,7]
[384883129,1757614250710,-400.0,0.00027397,7]
[384883130,1757614250720,-472.94534198,0.00027397,7]
[384883131,1757614250732,-27.05465802,0.00027397,7]
[384883132,1757614250741,-150.0,0.00027397,7]
[384883133,1757614250750,-177.26481653,0.00027397,7]
[384883134,1757614264583,300.0,0.000297,120]
[384883137,1757614321424,2000.0,0.0002706,120]
[384883138,1757614356128,1000.0,0.0003,120]
[384883148,1757614446919,1500.0,0.00026381,120]
[384883151,1757614462337,-189.25368698,0.000245,2]
[384883152,1757614464608,-8.78631302,0.000245,2]
[384883157,1757614498040,-180.01,0.000245,2]
[384883158,1757614498061,-47.88079975,0.000245,2]
[384883159,1757614500224,-166.7722233,0.000245,2]
[384883160,1757614502338,-39.24697695,0.000245,2]
[384883166,1757614566928,-151.0,0.00023928,2]
[384883167,1757614566953,-34.05463156,0.000245,2]
[384883168,1757614569112,-151.0,0.00023369,2]
[384883169,1757614569134,-125.95536844,0.000245,2]
[384883170,1757614569156,-8.47061901,0.000245,2]
[384883171,1757614571762,-174.48,0.000245,2]
[384883184,1757614881073,185.86,0.00013084,2]
[384883185,1757614881341,185.86,0.00019626,2]
[384883187,1757614990575,-205.36,0.00023923,2]
[384883188,1757615006983,-261.83,0.000244,5]
[384883190,1757615083099,-193.65938418,0.000243,5]
[384883191,1757615099451,176.04,0.00016438,2]
[384883193,1757615108626,83132.12,0.0002,2]
[384883194,1757615108655,34225.57493902,0.0002,2]
[384883195,1757615125860,-163.936103,0.00022783,2]
[384883197,1757615150764,-12.103897,0.00022783,2]
[384883198,1757615150786,-164.43609504,0.00024091,2]
[384883200,1757615156538,141820.38734722,0.000191,2]
[384883201,1757615158493,-35.56390496,0.00024091,2]
[384883202,1757615158516,-326.95671086,0.000241,5]
[384883203,1757615159488,-326.95671086,0.000241,5]
[384883205,1757615250514,405.39,0.00025741,120]
[384883206,1757615251596,405.39,0.00028959,120]
[384883209,1757615281068,72983.732538,0.0002,2]
[384883260,1757615431395,-223.68,0.00023905,2]
[384883261,1757615431406,-1932.14123483,0.000244,2]
[384883262,1757615431415,-500.0,0.00024631,2]
[384883263,1757615431424,-899.78507582,0.00024632,2]
[384883264,1757615431436,-300.21492418,0.00024632,2]
[384883265,1757615431449,-150.0,0.00024633,2]
[384883266,1757615431459,-150.0,0.00024633,2]
[384883267,1757615431468,-150.0,0.00024633,2]
[384883268,1757615431479,-150.0,0.00024633,2]
[384883269,1757615431488,-150.0,0.00024633,2]
[384883270,1757615431497,-150.0,0.00024633,2]
[384883271,1757615431507,-57.86414946,0.00024633,2]
[384883272,1757615431519,-92.13585054,0.00024633,2]
[384883273,1757615431529,-150.0,0.00024633,2]
[384883274,1757615431538,-150.0,0.00024633,2]
[384883275,1757615431548,-150.0,0.00024633,2]
[384883276,1757615431557,-150.0,0.00024633,2]
[384883277,1757615431566,-150.0,0.00024633,2]
[384883278,1757615431576,-55.50094872,0.00024897,2]
[384883279,1757615431695,-203.11674931,0.00024897,2]
[384883280,1757615431704,-616.07512113,0.000249,2]
[384883281,1757615431716,-4049.62831764,0.000249,2]
[384883282,1757615431725,-257.91778498,0.00025329,2]
[384883283,1757615431735,-223.68,0.00025618,7]
[384883284,1757615431745,-175.92,0.00025754,2]
[384883285,1757615431754,-170.1,0.00025872,2]
[384883286,1757615431764,-600.0,0.00025969,2]
[384883287,1757615431773,-33.75389738,0.00026001,4]
[384883288,1757615431825,-116.24610262,0.00026001,4]
[384883289,1757615431835,-302.64,0.00026001,2]
[384883290,1757615431846,-267.57980225,0.00026013,2]
[384883291,1757615431858,-424.42019775,0.00026013,2]
[384883292,1757615431867,-44857.13,0.00026014,7]
[384883293,1757615431878,-515.37529716,0.00026014,7]
[384883294,1757615431887,-150.0,0.00026062,7]
[384883295,1757615431897,-164.12,0.00026128,2]
[384883296,1757615431908,-185.86,0.00026168,2]
[384883297,1757615431918,-666.0,0.00026272,3]
[384883298,1757615431928,-250.0,0.00026295,2]
[384883299,1757615431937,-247.68,0.00026333,2]
[384883301,1757615431947,-416.45,0.00026381,2]
[384883302,1757615431957,-162.89,0.00026507,2]
[384883303,1757615431966,-710.2728951,0.00026634,2]
[384883304,1757615431976,-267.46074303,0.00026698,2]
[384883305,1757615431985,-224.0,0.000268,2]
[384883306,1757615431995,-1680.0,0.00026816,2]
[384883307,1757615432007,-300.0,0.0002684,2]
[384883308,1757615432016,-710.2728951,0.00026938,2]
[384883309,1757615432026,-164.0,0.00027,7]
[384883310,1757615432036,-150.0,0.00027,7]
[384883311,1757615432045,-175.92,0.00027042,2]
[384883312,1757615432054,-174.61919142,0.00027114,2]
[384883313,1757615432064,-276.87818321,0.00027114,2]
[384883314,1757615432073,-13209.87717771,0.0002713,2]
[384883315,1757615432083,-160.0,0.00027166,2]
[384883316,1757615432092,-515.37529716,0.00027166,2]
[384883317,1757615432101,-524.154,0.0002728,16]
[384883318,1757615432110,-4078.86064984,0.00027293,2]
[384883319,1757615432120,-5566.73710488,0.00027297,2]
[384883320,1757615432129,-193.12323096,0.00027297,2]
[384883321,1757615432138,-678.53352771,0.00027297,2]
[384883322,1757615432148,-3093.57949758,0.00027297,2]
[384883323,1757615432157,-710.2728951,0.0002733,2]
[384883324,1757615432166,-223.68,0.00027331,7]
[384883325,1757615432176,-4078.86064984,0.00027354,2]
[384883326,1757615432185,-150.0,0.0002737,4]
[384883327,1757615432195,-150.0,0.0002737,4]
[384883328,1757615432205,-150.0,0.0002737,4]
[384883329,1757615432214,-150.0,0.0002737,4]
[384883330,1757615432223,-150.0,0.0002737,4]
[384883331,1757615432233,-500.0,0.00027373,2]
[384883332,1757615432243,-500.0,0.00027373,2]
[384883333,1757615432252,-5074.68248876,0.00027377,2]
[384883334,1757615432261,-1343.50589042,0.00027379,3]
[384883335,1757615432271,-157.92165358,0.00027379,3]
[384883336,1757615432280,-7612.02373314,0.00027383,2]
[384883337,1757615432289,-17761.3887107,0.00027387,2]
[384883338,1757615432299,-181.74246845,0.00027387,2]
[384883339,1757615432308,-1579.0,0.00027393,2]
[384883340,1757615432318,-601.0,0.00027393,2]
[384883341,1757615432327,-568.0,0.00027393,2]
[384883342,1757615432336,-1302.0,0.00027393,2]
[384883343,1757615432345,-812.0,0.00027393,2]
[384883344,1757615432355,-1176.0,0.00027393,2]
[384883345,1757615432365,-897.0,0.00027393,2]
[384883346,1757615432375,-1259.0,0.00027393,2]
[384883347,1757615432384,-3386.0,0.00027393,2]
[384883348,1757615432394,-615.0,0.00027397,2]
[384883349,1757615432404,-150.0,0.00027397,7]
[384883350,1757615432413,-400.0,0.00027397,7]
[384883351,1757615432423,-400.0,0.00027397,7]
[384883352,1757615432432,-850.48,0.00027397,7]
[384883353,1757615432445,-470.41811821,0.00027397,7]
[384883354,1757615432454,-1518.56,0.00027397,7]
[384883355,1757615432464,-400.0,0.00027397,7]
[384883356,1757615432473,-512.67,0.00027397,7]
[384883357,1757615432483,-168.07300851,0.00027397,2]
[384883358,1757615432492,-154.73310895,0.00027397,2]
[384883359,1757615432501,-500.0,0.00027397,2]
[384883360,1757615432510,-150.0,0.00027397,2]
[384883361,1757615432521,-400.0,0.00027397,7]
[384883362,1757615432530,-1220.18,0.00027397,7]
[384883363,1757615432540,-400.0,0.00027397,7]
[384883364,1757615432549,-400.0,0.00027397,7]
[384883365,1757615432558,-406.66487511,0.00027397,7]
[384883366,1757615432567,-886.43,0.00027397,7]
[384883367,1757615432577,-1268.64,0.00027397,7]
[384883368,1757615432586,-400.0,0.00027397,7]
[384883369,1757615432595,-400.0,0.00027397,7]
[384883370,1757615432604,-566.54,0.00027397,7]
[384883371,1757615432614,-169.51068436,0.00027397,7]
[384883372,1757615432624,-404.7002132,0.00027397,7]
[384883373,1757615432634,-400.0,0.00027397,7]
[384883374,1757615432643,-400.0,0.00027397,7]
[384883375,1757615432653,-400.0,0.00027397,7]
[384883376,1757615432662,-400.0,0.00027397,7]
[384883377,1757615432671,-400.0,0.00027397,7]
[384883378,1757615432681,-720.03,0.00027397,7]
[384883379,1757615432690,-540.82,0.00027397,7]
[384883380,1757615432700,-400.0,0.00027397,7]
[384883381,1757615432708,-557.5,0.00027397,7]
[384883382,1757615432718,-1002.94,0.00027397,7]
[384883383,1757615432727,-400.0,0.00027397,7]
[384883384,1757615432736,-574.36,0.00027397,7]
[384883385,1757615432746,-400.0,0.00027397,7]
[384883386,1757615432755,-415.3,0.00027397,7]
[384883387,1757615432764,-400.0,0.00027397,7]
[384883388,1757615432774,-400.0,0.00027397,7]
[384883389,1757615432783,-400.0,0.00027397,7]
[384883390,1757615432793,-400.0,0.00027397,7]
[384883391,1757615432803,-400.0,0.00027397,7]
[384883392,1757615432814,-1602.1,0.00027397,7]
[384883393,1757615432824,-400.0,0.00027397,7]
[384883394,1757615432834,-400.0,0.00027397,7]
[384883395,1757615432843,-400.0,0.00027397,7]
[384883396,1757615432854,-400.0,0.00027397,7]
[384883397,1757615432863,-400.0,0.00027397,7]
[384883398,1757615432873,-400.0,0.00027397,7]
[384883399,1757615432883,-400.0,0.00027397,7]
[384883400,1757615432893,-400.0,0.00027397,7]
[384883401,1757615432904,-400.0,0.00027397,7]
[384883402,1757615432913,-400.0,0.00027397,7]
[384883403,1757615432923,-400.0,0.00027397,7]
[384883404,1757615432933,-400.0,0.00027397,7]
[384883405,1757615432943,-400.0,0.00027397,7]
[384883406,1757615432952,-1735.18,0.00027397,7]
[384883407,1757615432963,-400.0,0.00027397,7]
[384883408,1757615432972,-491.72,0.00027397,7]
[384883409,1757615432983,-400.0,0.00027397,7]
[384883410,1757615432993,-1738.48,0.00027397,7]
[384883411,1757615433003,-400.0,0.00027397,7]
[384883412,1757615433012,-400.0,0.00027397,7]
[384883413,1757615433022,-400.0,0.00027397,7]
[384883414,1757615433031,-400.0,0.00027397,7]
[384883415,1757615433041,-400.0,0.00027397,7]
[384883416,1757615433051,-406.2205367,0.00027397,7]
[384883417,1757615433061,-400.0,0.00027397,7]
[384883418,1757615433072,-400.0,0.00027397,7]
[384883419,1757615433082,-737.39,0.00027397,7]
[384883420,1757615433091,-400.0,0.00027397,7]
[384883421,1757615433101,-400.0,0.00027397,7]
[384883422,1757615433111,-400.0,0.00027397,7]
[384883423,1757615433120,-198.74131501,0.00027397,7]
[384883424,1757615433129,-400.0,0.00027397,7]
[384883425,1757615433138,-400.0,0.00027397,7]
[384883426,1757615433147,-400.0,0.00027397,7]
[384883427,1757615433156,-400.0,0.00027397,7]
[384883428,1757615433166,-500.0,0.00027397,7]
[384883429,1757615433175,-400.0,0.00027397,7]
[384883430,1757615433184,-400.0,0.00027397,7]
[384883431,1757615433194,-400.0,0.00027397,7]
[384883432,1757615433204,-585.54,0.00027397,7]
[384883433,1757615433213,-400.0,0.00027397,7]
[384883434,1757615433221,-400.0,0.00027397,7]
[384883435,1757615433231,-400.0,0.00027397,7]
[384883436,1757615433240,-400.0,0.00027397,7]
[384883437,1757615433250,-400.0,0.00027397,7]
[384883438,1757615433259,-400.0,0.00027397,7]
[384883439,1757615433268,-400.0,0.00027397,7]
[384883440,1757615433277,-400.0,0.00027397,7]
[384883441,1757615433287,-400.0,0.00027397,2]
[384883442,1757615433296,-1771.01,0.00027397,7]
[384883443,1757615433305,-1130.13,0.00027397,7]
[384883444,1757615433314,-400.0,0.00027397,7]
[384883445,1757615433323,-400.0,0.00027397,7]
[384883446,1757615433333,-400.0,0.00027397,7]
[384883447,1757615433342,-1806.91,0.00027397,7]
[384883448,1757615433351,-400.0,0.00027397,7]
[384883449,1757615433360,-1634.45,0.00027397,7]
[384883450,1757615433370,-400.0,0.00027397,7]
[384883451,1757615433379,-400.0,0.00027397,7]
[384883452,1757615433389,-400.0,0.00027397,7]
[384883453,1757615433399,-1465.77,0.00027397,7]
[384883454,1757615433408,-400.0,0.00027397,7]
[384883455,1757615433418,-400.0,0.00027397,7]
[384883456,1757615433428,-1091.56,0.00027397,7]
[384883457,1757615433438,-750.04,0.00027397,7]
[384883458,1757615433449,-400.0,0.00027397,7]
[384883459,1757615433458,-400.0,0.00027397,7]
[384883460,1757615433467,-400.0,0.00027397,7]
[384883461,1757615433477,-400.0,0.00027397,7]
[384883462,1757615433487,-400.0,0.00027397,7]
[384883463,1757615433497,-151.0,0.00027397,7]
[384883464,1757615433507,-509.74029565,0.00027397,7]
[384883465,1757615433519,-400.0,0.00027397,7]
[384883466,1757615433533,-1116.27,0.00027397,7]
[384883467,1757615433543,-400.0,0.00027397,7]
[384883468,1757615433555,-413.71003514,0.00027397,7]
[384883469,1757615433564,-400.0,0.00027397,7]
[384883470,1757615433573,-576.48,0.00027397,7]
[384883471,1757615433583,-841.14,0.00027397,7]
[384883472,1757615433593,-400.0,0.00027397,7]
[384883473,1757615433602,-400.0,0.00027397,7]
[384883474,1757615433612,-953.17,0.00027397,7]
[384883475,1757615433622,-400.0,0.00027397,7]
[384883476,1757615433631,-400.0,0.00027397,7]
[384883477,1757615433641,-400.0,0.00027397,7]
[384883478,1757615433651,-400.0,0.00027397,7]
[384883479,1757615433660,-400.0,0.00027397,7]
[384883480,1757615433672,-1151.78,0.00027397,7]
[384883481,1757615433692,-400.0,0.00027397,7]
[384883482,1757615433705,-400.0,0.00027397,7]
[384883483,1757615433714,-900.72,0.00027397,7]
[384883484,1757615433724,-400.0,0.00027397,7]
[384883485,1757615433733,-400.0,0.00027397,7]
[384883486,1757615433743,-400.0,0.00027397,7]
[384883487,1757615433752,-400.0,0.00027397,7]
[384883488,1757615433762,-400.0,0.00027397,7]
[384883489,1757615433772,-876.64,0.00027397,7]
[384883490,1757615433782,-1032.66,0.00027397,7]
[384883491,1757615433793,-400.0,0.00027397,7]
[384883492,1757615433805,-441.25,0.00027397,7]
[384883493,1757615433821,-400.0,0.00027397,7]
[384883494,1757615433835,-605.32,0.00027397,7]
[384883495,1757615433845,-400.0,0.00027397,7]
[384883496,1757615433855,-400.0,0.00027397,7]
[384883497,1757615433866,-500.0,0.00027397,7]
[384883498,1757615433876,-534.14,0.00027397,7]
[384883499,1757615433887,-500.0,0.00027397,7]
[384883500,1757615433897,-400.0,0.00027397,7]
[384883501,1757615433908,-500.0,0.00027397,7]
[384883502,1757615433918,-1527.25,0.00027397,7]
[384883503,1757615433928,-400.0,0.00027397,7]
[384883504,1757615433937,-400.0,0.00027397,7]
[384883505,1757615433947,-400.0,0.00027397,7]
[384883506,1757615433957,-400.0,0.00027397,7]
[384883507,1757615433967,-400.0,0.00027397,7]
[384883508,1757615433977,-415.02614308,0.00027397,7]
[384883509,1757615433987,-400.0,0.00027397,7]
[384883510,1757615433996,-400.0,0.00027397,7]
[384883511,1757615434006,-400.0,0.00027397,7]
[384883512,1757615434016,-400.0,0.00027397,7]
[384883513,1757615434026,-440.4,0.00027397,7]
[384883514,1757615434036,-400.0,0.00027397,7]
[384883515,1757615434046,-537.8,0.00027397,7]
[384883516,1757615434055,-878.92,0.00027397,7]
[384883517,1757615434065,-400.0,0.00027397,7]
[384883518,1757615434074,-844.42,0.00027397,7]
[384883519,1757615434084,-738.31,0.00027397,7]
[384883520,1757615434094,-400.0,0.00027397,7]
[384883521,1757615434104,-481.95,0.00027397,7]
[384883522,1757615434113,-400.0,0.00027397,7]
[384883524,1757615434123,-400.0,0.00027397,7]
[384883525,1757615434132,-400.0,0.00027397,7]
[384883526,1757615434142,-400.0,0.00027397,7]
[384883527,1757615434152,-411.84883399,0.00027397,7]
[384883528,1757615434162,-400.0,0.00027397,7]
[384883529,1757615434171,-850.41,0.00027397,7]
[384883530,1757615434181,-1328.89,0.00027397,7]
[384883531,1757615434190,-400.0,0.00027397,7]
[384883532,1757615434199,-400.0,0.00027397,7]
[384883533,1757615434208,-427.8,0.00027397,7]
[384883534,1757615434218,-400.0,0.00027397,7]
[384883535,1757615434227,-400.0,0.00027397,7]
[384883536,1757615434236,-400.0,0.00027397,7]
[384883537,1757615434246,-561.46,0.00027397,7]
[384883538,1757615434255,-400.0,0.00027397,7]
[384883539,1757615434265,-400.0,0.00027397,7]
[384883540,1757615434274,-400.0,0.00027397,7]
[384883541,1757615434284,-585.2,0.00027397,7]
[384883542,1757615434293,-403.24514648,0.00027397,7]
[384883543,1757615434303,-400.0,0.00027397,7]